bitfinex-derivatives/quotes_SOLF0:USTF0_20250221
["timestamp","ask_amount","ask_price","bid_price","bid_amount"]
[1740144017340,0.04061361,179.52,179.5,5.5697]
[1740144017643,0.04061361,179.52,179.49,0.03536526]
[1740144018040,70.82326971,179.52,179.49,0.03536526]
[1740144018243,55.71,179.51,179.49,0.03536526]
[1740144018638,55.71,179.5,179.41,1.8042]
[1740144018842,15.0726561,179.49,179.4,15.0726561]
[1740144019037,15.0726561,179.49,179.38,30.45590573]
[1740144019241,5.5713,179.46,179.42,5.572]
[1740144019442,15.0726561,179.49,179.38,30.45590573]
[1740144019744,1.6687,179.51,179.4,15.0726561]
[1740144019938,0.03986132,179.45,179.4,15.0726561]
[1740144021542,0.03986132,179.45,179.44,5.5716]
[1740144022437,6.132e-05,179.45,179.44,5.5716]
[1740144023241,6.132e-05,179.45,179.44,61.3016]
[1740144023447,1.7843,179.54,179.51,5.5692]
[1740144023741,1.6607,179.56,179.47,15.0726561]
[1740144024447,5.5691,179.53,179.49,5.5698]
[1740144024647,5.60828589,179.53,179.5,0.03996381]
[1740144025047,5.60828589,179.53,179.5,5.60956381]
[1740144025548,0.03918589,179.53,179.5,5.60956381]
[1740144025738,0.03918589,179.53,179.51,5.5694]
[1740144026049,0.03918589,179.53,179.5,0.03996381]
[1740144026446,0.03918589,179.53,179.52,5.5691]
[1740144027149,8.589e-05,179.53,179.52,5.5691]
[1740144027345,8.589e-05,179.53,179.52,61.2691]
[1740144027550,8.589e-05,179.53,179.52,5.5691]
[1740144027746,8.589e-05,179.53,179.52,61.2691]
[1740144027947,8.589e-05,179.53,179.52,5.5691]
[1740144028949,8.589e-05,179.53,179.52,61.2691]
[1740144029352,8.589e-05,179.53,179.52,5.5691]
[1740144031250,8.589e-05,179.53,179.52,61.2691]
[1740144031952,8.589e-05,179.53,179.52,5.5691]
[1740144032153,1.7873,179.66,179.52,79.83366141]
[1740144032349,5.5656,179.64,179.53,3.4897]
[1740144032551,1.7873,179.66,179.53,3.4897]
[1740144033453,0.03533664,179.61,179.58,0.03686037]
[1740144033955,5.60193664,179.61,179.58,0.03686037]
[1740144034157,0.03533664,179.61,179.58,0.03686037]
[1740144034358,0.03533664,179.61,179.58,5.60396037]
[1740144034552,0.03533664,179.61,179.58,0.03686037]
[1740144034959,0.03533664,179.61,179.6,5.5667]
[1740144035752,0.03533664,179.61,179.59,5.5669]
[1740144036561,0.03533664,179.61,179.58,0.03686037]
[1740144036761,0.03533664,179.61,179.6,5.5667]
[1740144040657,0.03533664,179.61,179.58,0.03686037]
[1740144040863,0.03533664,179.61,179.59,5.5669]
[1740144041660,0.03533664,179.61,179.6,5.5667]
[1740144047055,3.664e-05,179.61,179.6,20.63515516]
[1740144047254,193.0,179.75,179.7,5.5633]
[1740144047453,15.06845516,179.76,179.7,5.5633]
[1740144047660,5.5624,179.74,179.7,5.5633]
[1740144047863,5.5624,179.74,179.65,15.06845516]
[1740144048066,15.06845516,179.76,179.65,15.06845516]
[1740144048563,0.03642883,179.72,179.69,0.03977544]
[1740144048763,5.5638,179.7,179.66,5.5647]
[1740144048964,5.5638,179.7,179.69,0.04261363]
[1740144049164,5.5638,179.7,179.62,16.75775516]
[1740144049366,15.06845516,179.73,179.68,0.04215721]
[1740144049565,5.5633,179.71,179.67,5.5642]
[1740144049762,0.03658729,179.72,179.69,0.03953008]
[1740144049962,5.5625,179.74,179.7,5.5633]
[1740144050157,0.03769438,179.72,179.69,0.03680677]
[1740144051767,0.03769438,179.72,179.71,5.5632]
[1740144052665,0.03769438,179.72,179.7,5.5635]
[1740144053168,0.03769438,179.72,179.69,0.03680677]
[1740144054257,55.65,179.71,179.69,0.03680677]
[1740144054464,15.06845516,179.7,179.61,1.664]
[1740144054966,5.5645,179.67,179.63,5.5655]
[1740144055571,5.60254026,179.67,179.63,5.6065797]
[1740144056061,0.03804026,179.67,179.63,0.0410797]
[1740144056763,0.03804026,179.67,179.66,5.5648]
[1740144058166,4.026e-05,179.67,179.66,5.5648]
[1740144058472,5.5626,179.74,179.7,5.5633]
[1740144058669,5.5621,179.75,179.66,15.06845516]
[1740144058873,15.06845516,179.76,179.7,5.5632]
[1740144059373,5.5625,179.74,179.71,0.03750055]
[1740144060166,5.5625,179.74,179.71,5.60050055]
[1740144060978,5.5625,179.74,179.71,0.03750055]
[1740144061278,5.59785188,179.75,179.71,0.03750055]
[1740144061569,15.06845516,179.84,179.72,15.06845516]
[1740144061778,16.74255516,179.84,179.75,15.06845516]
[1740144061969,16.74255516,179.84,179.79,5.5605]
[1740144062174,1.6741,179.84,179.75,15.06845516]
[1740144062776,0.0395454,179.81,179.78,0.03705828]
[1740144064073,0.0395454,179.81,179.8,5.5605]
[1740144064979,4.54e-05,179.81,179.8,5.5605]
[1740144065583,4.54e-05,179.81,179.8,61.1805]
[1740144066878,70.68850056,179.81,179.64,16.86685516]
[1740144067075,15.06845516,179.76,179.64,16.86685516]
[1740144067283,196.4146,179.8,179.64,16.86685516]
[1740144067284,5.5633,179.71,179.66,7.61397643]
[1740144067790,20.63035516,179.76,179.68,5.5641]
[1740144068090,0.04271297,179.7,179.67,0.0369427]
[1740144068288,15.06845516,179.76,179.67,0.0369427]
[1740144068487,0.03755721,179.7,179.67,5.6011427]
[1740144068985,0.03755721,179.7,179.67,15.10539786]
[1740144069186,15.06845516,179.79,179.68,55.65]
[1740144069388,3.4146,179.8,179.73,5.5626]
[1740144069588,5.5608,179.79,179.7,15.06845516]
[1740144069892,5.5608,179.79,179.64,85.45866665]
[1740144069893,15.06845516,179.76,179.64,24.54685516]
[1740144070286,5.6031661,179.72,179.68,0.04207895]
[1740144070988,0.0401661,179.72,179.68,0.04207895]
[1740144071693,5.5633,179.71,179.68,0.04207895]
[1740144072089,0.0401661,179.72,179.68,0.04207895]
[1740144072791,5.6033661,179.72,179.68,0.04207895]
[1740144072990,0.0401661,179.72,179.68,0.04207895]
[1740144074193,0.0401661,179.72,179.68,24.12319732]
[1740144074596,0.0401661,179.72,179.71,5.5632]
[1740144075793,6.61e-05,179.72,179.71,5.5632]
[1740144075989,1.8127,179.82,179.76,5.5615]
[1740144076385,1.8127,179.82,179.71,24.08111837]
[1740144077190,0.04135755,179.78,179.76,5.5615]
[1740144077392,0.04135755,179.78,179.75,0.03592076]
[1740144077596,0.04135755,179.78,179.76,5.5616]
[1740144078298,0.04135755,179.78,179.75,0.03592076]
[1740144078795,5.5617,179.76,179.75,0.03592076]
[1740144078993,0.04135755,179.78,179.64,25.74651837]
[1740144078994,1.6781,179.77,179.64,25.74651837]
[1740144079190,25.75921837,179.77,179.64,25.74651837]
[1740144079391,1.6781,179.77,179.64,25.74651837]
[1740144079992,0.04285739,179.72,179.64,25.74651837]
[1740144080200,0.04285739,179.72,179.69,0.04194589]
[1740144081201,0.04285739,179.72,179.7,5.5636]
[1740144081603,0.04285739,179.72,179.69,0.04194589]
[1740144081799,0.04285739,179.72,179.65,5.565]
[1740144082201,24.08111837,179.71,179.58,32.22110573]
[1740144082817,5.5644,179.68,179.63,5.5655]
[1740144083105,0.0363614,179.66,179.63,0.03805768]
[1740144083901,6.14e-05,179.66,179.65,5.5651]
[1740144085006,6.14e-05,179.66,179.65,85.30621837]
[1740144085402,6.14e-05,179.66,179.65,5.5651]
[1740144085804,194.7137,179.76,179.65,79.74111837]
[1740144086105,1.7137,179.76,179.64,1.7794]
[1740144086307,1.7137,179.76,179.62,24.08111837]
[1740144086508,1.7137,179.76,179.65,24.08111837]
[1740144086906,1.7137,179.76,179.67,5.5642]
[1740144087104,0.03877617,179.72,179.69,0.04054952]
[1740144088710,0.03877617,179.72,179.71,5.5632]
[1740144088904,0.03877617,179.72,179.69,0.04054952]
[1740144089505,5.60167617,179.72,179.69,0.04054952]
[1740144089906,0.03877617,179.72,179.69,0.04054952]
[1740144091013,0.03877617,179.72,179.71,5.5632]
[1740144091915,0.03877617,179.72,179.69,0.04054952]
[1740144092410,7.617e-05,179.72,179.71,5.5632]
[1740144094515,5.56307617,179.72,179.69,5.60414952]
[1740144094707,7.617e-05,179.72,179.69,0.04054952]
[1740144095518,7.617e-05,179.72,179.6,154.98187643]
[1740144095812,24.08111837,179.71,179.6,153.27397643]
[1740144096520,24.08111837,179.71,179.6,145.66]
[1740144096711,0.04217796,179.67,179.64,0.04126753]
[1740144097718,0.04217796,179.67,179.65,5.5648]
[1740144098616,0.04217796,179.67,179.64,5.60656753]
[1740144099414,0.04217796,179.67,179.64,0.04126753]
[1740144099610,0.04217796,179.67,179.65,5.5651]
[1740144100414,0.04217796,179.67,179.64,0.04126753]
[1740144101314,5.5651,179.65,179.64,0.04126753]
[1740144101512,61.2351,179.65,179.64,0.04126753]
[1740144101707,55.67,179.65,179.6,5.5666]
[1740144101911,5.5651,179.65,179.55,25.85011837]
[1740144102107,24.08111837,179.68,179.55,25.85011837]
[1740144102307,5.5654,179.65,179.55,25.85011837]
[1740144102815,5.5654,179.65,179.61,5.5661]
[1740144103122,0.04136543,179.62,179.61,5.5661]
[1740144104213,0.04136543,179.62,179.59,5.5669]
[1740144104414,0.04136543,179.62,179.58,0.03731259]
[1740144104918,0.04136543,179.62,179.61,5.5663]
[1740144106021,6.543e-05,179.62,179.61,5.5663]
[1740144107420,6.543e-05,179.62,179.61,76.2983585]
[1740144107619,6.543e-05,179.62,179.61,20.6283585]
[1740144109720,6.543e-05,179.62,179.61,5.5663]
[1740144110023,6.543e-05,179.62,179.59,5.5669]
[1740144110519,6.543e-05,179.62,179.58,5.60451259]
[1740144110827,5.5666,179.61,179.58,0.03731259]
[1740144111017,6.543e-05,179.62,179.58,0.03731259]
[1740144111222,1.71246543,179.62,179.58,0.03731259]
[1740144111922,5.5669,179.6,179.58,0.03731259]
[1740144112318,1.71246543,179.62,179.58,0.03731259]
[1740144112523,5.5669,179.6,179.58,0.03731259]
[1740144112724,1.71246543,179.62,179.58,0.03731259]
[1740144113523,1.71246543,179.62,179.59,5.5667]
[1740144113824,1.71246543,179.62,179.58,0.03731259]
[1740144114217,1.71246543,179.62,179.59,5.5667]
[1740144114416,6.543e-05,179.62,179.58,0.03731259]
[1740144114625,5.56636543,179.62,179.58,0.03731259]
[1740144114821,5.56636543,179.62,179.59,5.5669]
[1740144115026,6.543e-05,179.62,179.58,0.03731259]
[1740144116428,6.543e-05,179.62,179.59,5.5668]
[1740144116727,5.56616543,179.62,179.58,0.03731259]
[1740144116928,6.543e-05,179.62,179.59,5.5667]
[1740144117426,6.543e-05,179.62,179.61,5.5663]
[1740144118930,6.543e-05,179.62,179.58,0.03731259]
[1740144120530,6.543e-05,179.62,179.61,5.5663]
[1740144124534,9.1214,179.72,179.61,79.78376845]
[1740144124839,9.1214,179.72,179.61,24.11376845]
[1740144125032,3.5582,179.72,179.61,24.11376845]
[1740144125634,0.04006357,179.68,179.65,0.04220502]
[1740144126137,0.04006357,179.68,179.67,5.5645]
[1740144126638,3.5258,179.77,179.65,0.04220502]
[1740144126639,9.0875,179.77,179.65,0.04220502]
[1740144126839,3.5258,179.77,179.65,1.7685]
[1740144127038,5.5625,179.74,179.65,1.7685]
[1740144127235,5.5625,179.74,179.7,5.5635]
[1740144127436,3.5258,179.77,179.65,1.7685]
[1740144127631,24.11376845,179.73,179.63,5.5657]
[1740144127840,24.11376845,179.7,179.57,3.5245]
[1740144128141,196.4706,179.69,179.56,7.61397643]
[1740144128343,198.1935,179.69,179.59,5.5668]
[1740144128635,5.5655,179.64,179.59,5.5668]
[1740144128840,198.1935,179.69,179.58,5.5673]
[1740144129040,198.1935,179.69,179.6,0.03716342]
[1740144129041,0.03994286,179.63,179.6,0.03716342]
[1740144129838,0.03994286,179.63,179.6,5.60376342]
[1740144130639,0.03994286,179.63,179.6,0.03716342]
[1740144131036,5.5671,179.59,179.52,71.64704366]
[1740144131240,5.5671,179.59,179.55,5.5681]
[1740144131436,1.6827,179.61,179.52,71.64704366]
[1740144131645,7.2493,179.61,179.52,71.64704366]
[1740144131845,7.2493,179.61,179.56,5.5677]
[1740144132143,0.03941397,179.6,179.57,0.03892762]
[1740144133839,5.60611397,179.6,179.57,0.03892762]
[1740144134049,0.03941397,179.6,179.57,0.03892762]
[1740144134848,0.03941397,179.6,179.57,5.60642762]
[1740144135044,0.03941397,179.6,179.57,0.03892762]
[1740144135446,0.03941397,179.6,179.58,5.5672]
[1740144135842,0.03941397,179.6,179.59,5.567]
[1740144136351,0.03941397,179.6,179.57,0.03892762]
[1740144137152,0.03941397,179.6,179.59,5.567]
[1740144138253,1.397e-05,179.6,179.59,5.567]
[1740144139348,1.397e-05,179.6,179.59,61.247]
[1740144139851,5.5633,179.71,179.59,55.68]
[1740144140054,5.3019,179.75,179.61,24.10240707]
[1740144140252,5.3019,179.75,179.62,1.7194]
[1740144140448,5.3019,179.75,179.68,5.5639]
[1740144140654,5.3019,179.75,179.63,1.749]
[1740144141150,5.3019,179.75,179.71,5.5632]
[1740144141352,5.3019,179.75,179.64,24.10240707]
[1740144141553,5.34207913,179.75,179.71,0.03630212]
[1740144141749,5.34061402,179.75,179.71,0.03630212]
[1740144142064,1.70781402,179.75,179.71,0.03630212]
[1740144142349,0.03871402,179.75,179.71,0.03630212]
[1740144144150,0.03871402,179.75,179.74,5.5623]
[1740144144351,0.03871402,179.75,179.71,0.03630212]
[1740144145048,0.03871402,179.75,179.61,24.10240707]
[1740144145254,1.7362,179.75,179.61,24.10240707]
[1740144145448,1.7362,179.75,179.64,24.10240707]
[1740144146157,5.5624,179.74,179.64,24.10240707]
[1740144146446,0.03984428,179.71,179.69,5.5639]
[1740144146652,0.03984428,179.71,179.68,0.03823556]
[1740144146843,55.68984428,179.71,179.68,0.03823556]
[1740144147045,0.03984428,179.71,179.68,0.03823556]
[1740144147444,0.03984428,179.71,179.7,5.5636]
[1740144147644,0.03984428,179.71,179.68,0.03823556]
[1740144148049,0.03984428,179.71,179.7,5.5636]
[1740144148656,4.428e-05,179.71,179.7,5.5636]
[1740144150346,4.428e-05,179.71,179.7,61.2136]
[1740144150547,4.428e-05,179.71,179.7,5.5636]
[1740144150751,4.428e-05,179.71,179.7,61.2136]
[1740144152154,3.5693,179.8,179.7,79.75240707]
[1740144152354,1.7584,179.8,179.7,24.10240707]
[1740144153051,194.794,179.84,179.73,24.10240707]
[1740144153253,1.794,179.84,179.73,24.10240707]
[1740144153455,1.794,179.84,179.82,5.5598]
[1740144153655,1.794,179.84,179.73,24.10240707]
[1740144153859,7.3533,179.84,179.81,0.04003218]
[1740144154153,55.61,179.83,179.7,24.10240707]
[1740144154352,1.794,179.84,179.7,24.10240707]
[1740144154552,0.04275094,179.78,179.75,0.03741026]
[1740144157162,5.60385094,179.78,179.75,0.03741026]
[1740144157466,0.04275094,179.78,179.75,0.03741026]
[1740144157656,0.04275094,179.78,179.75,5.59921026]
[1740144157852,0.04275094,179.78,179.75,0.03741026]
[1740144158057,0.04275094,179.78,179.75,5.59941026]
[1740144158460,5.60385094,179.78,179.75,5.59941026]
[1740144158659,0.04275094,179.78,179.75,5.59941026]
[1740144158853,0.04275094,179.78,179.75,0.03741026]
[1740144160463,0.04275094,179.78,179.75,5.59931026]
[1740144160652,0.04275094,179.78,179.75,0.03741026]
[1740144161156,5.60405094,179.78,179.75,0.03741026]
[1740144161363,0.04275094,179.78,179.75,0.03741026]
[1740144162061,15.04053771,179.76,179.65,15.04053771]
[1740144162259,1.8148,179.75,179.65,15.04053771]
[1740144162656,1.8148,179.75,179.61,5.2485]
[1740144162657,15.04053771,179.73,179.62,15.04053771]
[1740144162862,1.8148,179.75,179.6,71.6165001]
[1740144162863,15.04053771,179.7,179.6,71.6165001]
[1740144163265,0.04189896,179.67,179.64,5.5651]
[1740144164368,0.04189896,179.67,179.63,0.03553601]
[1740144165367,55.66,179.66,179.54,24.09702642]
[1740144165569,5.5655,179.64,179.6,5.5666]
[1740144165865,1.733,179.65,179.6,5.5666]
[1740144166065,1.733,179.65,179.54,24.09702642]
[1740144166569,0.03653179,179.61,179.58,0.03819966]
[1740144167273,0.03653179,179.61,179.6,5.5667]
[1740144169274,3.179e-05,179.61,179.6,61.2467]
[1740144169869,3.179e-05,179.61,179.6,85.34372642]
[1740144170068,193.0,179.7,179.68,5.564]
[1740144170371,3.6043,179.72,179.68,5.564]
[1740144170570,3.6043,179.72,179.6,24.09702642]
[1740144170770,7.3745,179.74,179.7,5.5635]
[1740144170968,27.65482642,179.79,179.63,24.09702642]
[1740144171174,0.04147155,179.74,179.71,5.563]
[1740144171374,0.04147155,179.74,179.7,0.03832999]
[1740144171773,0.04147155,179.74,179.72,5.5626]
[1740144172171,0.04147155,179.74,179.7,0.03832999]
[1740144172373,0.04147155,179.74,179.73,5.5626]
[1740144173978,0.04147155,179.74,179.72,5.5629]
[1740144174373,0.04147155,179.74,179.7,0.03832999]
[1740144175376,0.04147155,179.74,179.73,5.5626]
[1740144179174,0.04147155,179.74,179.7,0.03832999]
[1740144179574,0.04147155,179.74,179.73,5.5626]
[1740144180980,0.04147155,179.74,179.7,0.03832999]
[1740144182074,0.04147155,179.74,179.73,5.5626]
[1740144182283,0.04147155,179.74,179.7,0.03832999]
[1740144183179,0.04147155,179.74,179.71,5.5631]
[1740144184679,0.04147155,179.74,179.7,0.03832999]
[1740144185782,3.56957155,179.74,179.7,0.03832999]
[1740144185978,59.20957155,179.74,179.7,0.03832999]
[1740144186175,15.04802105,179.72,179.62,71.60934229]
[1740144186577,5.5643,179.68,179.63,5.5656]
[1740144187179,24.09703275,179.72,179.63,5.5656]
[1740144187375,0.03893352,179.67,179.64,0.03827094]
[1740144188378,5.60343352,179.67,179.64,0.03827094]
[1740144190074,0.03893352,179.67,179.64,0.03827094]
[1740144191185,55.66,179.66,179.64,0.03827094]
[1740144191377,5.5651,179.65,179.64,0.03827094]
[1740144191677,61.2251,179.65,179.64,0.03827094]
[1740144193482,5.5651,179.65,179.64,0.03827094]
[1740144195986,61.2351,179.65,179.64,0.03827094]
[1740144199090,55.67,179.65,179.54,24.09703275]
[1740144199290,5.5669,179.6,179.56,5.5676]
[1740144200088,27.46983275,179.66,179.56,5.5676]
[1740144200287,5.60742474,179.6,179.56,5.60322292]
[1740144200484,0.04052474,179.6,179.56,0.03562292]
[1740144201188,0.04052474,179.6,179.59,5.567]
[1740144202585,0.04052474,179.6,179.58,5.5672]
[1740144203089,0.04052474,179.6,179.56,0.03562292]
[1740144203589,5.60732474,179.6,179.57,5.5676]
[1740144204485,5.567,179.59,179.56,5.60342292]
[1740144205088,5.60742474,179.6,179.57,5.5674]
[1740144207384,5.567,179.59,179.56,0.03562292]
[1740144207588,0.04052474,179.6,179.56,5.60342292]
[1740144208093,0.04052474,179.6,179.57,5.5675]
[1740144208591,5.60732474,179.6,179.57,5.5675]
[1740144208786,0.04052474,179.6,179.56,0.03562292]
[1740144209193,5.5676,179.57,179.56,0.03562292]
[1740144209387,61.2576,179.57,179.56,0.03562292]
[1740144209582,5.5676,179.57,179.56,0.03562292]
[1740144210481,3.5627,179.58,179.56,0.03562292]
[1740144210684,0.04052474,179.6,179.56,0.03562292]
[1740144211191,0.04052474,179.6,179.56,5.60322292]
[1740144211592,5.60742474,179.6,179.56,5.60322292]
[1740144213092,5.60742474,179.6,179.56,0.03562292]
[1740144213093,0.04052474,179.6,179.56,0.03562292]
[1740144213792,0.04052474,179.6,179.58,5.5671]
[1740144214294,0.04052474,179.6,179.56,0.03562292]
[1740144214492,0.04052474,179.6,179.59,5.567]
[1740144214887,0.04052474,179.6,179.56,0.03562292]
[1740144215592,0.04052474,179.6,179.58,5.5671]
[1740144217390,0.04052474,179.6,179.56,0.03562292]
[1740144217596,0.04052474,179.6,179.59,5.567]
[1740144224800,15.0702917,179.7,179.58,15.0702917]
[1740144224994,213.3563917,179.71,179.65,5.5649]
[1740144225402,5.5641,179.69,179.65,5.5649]
[1740144225707,5.5641,179.69,179.66,5.5648]
[1740144225904,5.5639,179.69,179.66,5.5648]
[1740144226103,5.60291682,179.69,179.66,5.6039555]
[1740144227301,0.03901682,179.69,179.66,0.0391555]
[1740144227506,5.5645,179.67,179.66,0.0391555]
[1740144227702,70.7302917,179.68,179.55,15.0702917]
[1740144227902,5.5658,179.63,179.55,15.0702917]
[1740144228209,15.0702917,179.68,179.55,15.0702917]
[1740144228910,0.04010451,179.63,179.6,0.03908843]
[1740144229409,0.04010451,179.63,179.61,5.5663]
[1740144230706,5.60590451,179.63,179.6,5.60568843]
[1740144230903,0.04010451,179.63,179.6,0.03908843]
[1740144231604,0.04010451,179.63,179.61,5.5661]
[1740144235401,0.04010451,179.63,179.6,0.03908843]
[1740144235603,15.0702917,179.62,179.6,0.03908843]
[1740144235908,5.5663,179.61,179.6,0.03908843]
[1740144236300,61.2463,179.61,179.6,0.03908843]
[1740144236498,5.5663,179.61,179.6,0.03908843]
[1740144237409,15.0702917,179.62,179.56,5.5677]
[1740144238107,15.0702917,179.62,179.52,15.0702917]
[1740144238503,0.03673243,179.59,179.55,0.03830962]
[1740144239509,5.60383243,179.59,179.56,5.5677]
[1740144239704,0.03673243,179.59,179.55,0.03830962]
[1740144240405,5.60373243,179.59,179.56,5.5677]
[1740144240602,0.03673243,179.59,179.55,0.03830962]
[1740144240907,0.03673243,179.59,179.57,5.5674]
[1740144241104,0.03673243,179.59,179.55,0.03830962]
[1740144241609,0.03673243,179.59,179.58,5.5673]
[1740144242209,208.0702917,179.68,179.58,15.0702917]
[1740144242405,7.6,179.71,179.61,15.0702917]
[1740144242406,15.0702917,179.71,179.61,15.0702917]
[1740144242808,5.5639,179.69,179.61,15.0702917]
[1740144243010,5.5639,179.69,179.66,5.5648]
[1740144243408,5.60033272,179.69,179.66,5.60284567]
[1740144243607,0.03643272,179.69,179.66,0.03804567]
[1740144244113,0.03643272,179.69,179.68,5.5642]
[1740144244613,20.6318917,179.77,179.72,5.5629]
[1740144244809,5.5616,179.77,179.72,5.5629]
[1740144245713,0.04128929,179.76,179.73,0.04076749]
[1740144246013,5.5623,179.74,179.73,0.04076749]
[1740144246416,5.5621,179.75,179.73,0.04076749]
[1740144246714,0.04128929,179.76,179.73,0.04076749]
[1740144247112,5.5623,179.74,179.73,0.04076749]
[1740144247305,15.0702917,179.74,179.64,15.0702917]
[1740144247504,5.1406,179.79,179.61,15.0702917]
[1740144247505,15.0702917,179.71,179.61,15.0702917]
[1740144247913,15.0702917,179.71,179.59,3.4319]
[1740144248110,5.5646,179.67,179.59,3.4319]
[1740144248315,15.0702917,179.71,179.59,3.4319]
[1740144248515,0.04245864,179.65,179.61,0.04260806]
[1740144249011,15.11275034,179.65,179.61,0.04260806]
[1740144249209,5.566,179.62,179.61,0.04260806]
[1740144249610,70.7402917,179.62,179.54,0.78276401]
[1740144249812,5.5675,179.58,179.54,0.78276401]
[1740144250013,15.0702917,179.62,179.54,0.78276401]
[1740144250414,15.0702917,179.62,179.55,5.5681]
[1740144250606,15.0702917,179.62,179.54,0.78276401]
[1740144250810,0.03902623,179.6,179.57,0.03548125]
[1740144251113,5.60592623,179.6,179.57,0.03548125]
[1740144253316,0.03902623,179.6,179.57,5.60298125]
[1740144254316,0.03902623,179.6,179.57,0.03548125]
[1740144256417,0.03902623,179.6,179.58,5.567]
[1740144257018,0.03902623,179.6,179.59,5.567]
[1740144257717,2.623e-05,179.6,179.59,5.567]
[1740144258118,2.623e-05,179.6,179.59,61.247]
[1740144259521,2.623e-05,179.6,179.59,5.567]
[1740144261223,16.8083917,179.72,179.59,55.68]
[1740144261526,16.8083917,179.72,179.63,15.0702917]
[1740144261527,22.3713917,179.72,179.63,15.0702917]
[1740144261722,15.0702917,179.75,179.63,15.0702917]
[1740144261920,15.0702917,179.75,179.69,5.5638]
[1740144262227,5.5628,179.73,179.69,5.5638]
[1740144262426,5.5628,179.73,179.7,0.03614659]
[1740144262623,0.04202002,179.74,179.7,0.03614659]
[1740144263729,5.5632,179.71,179.7,0.03614659]
[1740144264125,55.65,179.71,179.6,1.7654]
[1740144264325,15.0702917,179.69,179.6,1.7654]
[1740144264523,1.7306,179.7,179.67,5.5643]
[1740144265124,7.2945,179.7,179.66,5.5647]
[1740144265323,7.33261806,179.7,179.67,0.04215425]
[1740144265629,0.03811806,179.7,179.67,0.04215425]
[1740144267533,1.806e-05,179.7,179.69,5.5639]
[1740144271938,1.806e-05,179.7,179.69,61.2139]
[1740144272233,1.806e-05,179.7,179.69,20.6341917]
[1740144274435,1.8118,179.8,179.76,5.5616]
[1740144274835,5.5606,179.8,179.73,15.0702917]
[1740144275029,5.5606,179.8,179.77,5.5611]
[1740144275537,5.5609,179.79,179.77,0.03804865]
[1740144275939,0.03578093,179.8,179.77,0.03804865]
[1740144276642,5.5611,179.78,179.77,0.03804865]
[1740144276830,55.62,179.79,179.67,15.0702917]
[1740144277037,16.7525917,179.77,179.67,15.0702917]
[1740144277741,5.5629,179.73,179.69,5.5636]
[1740144277936,5.5629,179.73,179.7,0.03596684]
[1740144278131,0.03644215,179.74,179.7,0.03596684]
[1740144279142,0.03644215,179.74,179.72,5.5627]
[1740144280134,0.03644215,179.74,179.73,5.5626]
[1740144282244,0.03644215,179.74,179.71,5.563]
[1740144282438,0.03644215,179.74,179.7,0.03596684]
[1740144283242,0.03644215,179.74,179.72,15.0702917]
[1740144283642,4.215e-05,179.74,179.73,61.2026]
[1740144285750,5.56,179.82,179.79,5.5606]
[1740144286551,1.7,179.84,179.75,15.0702917]
[1740144286842,0.04003678,179.81,179.78,0.03707801]
[1740144287954,5.5608,179.79,179.78,0.03707801]
[1740144288557,5.5617,179.76,179.73,5.5625]
[1740144288854,15.0702917,179.8,179.73,5.5625]
[1740144289056,5.5616,179.77,179.73,5.5624]
[1740144289754,5.60113932,179.77,179.73,5.60344801]
[1740144290152,5.5623,179.74,179.73,0.04104801]
[1740144290653,15.10983102,179.77,179.73,0.04104801]
[1740144290853,5.5621,179.75,179.73,0.04104801]
[1740144291054,15.10983102,179.77,179.73,0.04104801]
[1740144291251,0.03953932,179.77,179.73,0.04104801]
[1740144291854,5.5623,179.74,179.73,0.04104801]
[1740144293456,5.5621,179.75,179.73,0.04104801]
[1740144293654,0.03953932,179.77,179.73,0.04104801]
[1740144296154,0.03953932,179.77,179.74,5.562]
[1740144296564,0.03953932,179.77,179.73,0.04104801]
[1740144296759,0.03953932,179.77,179.74,5.5623]
[1740144296956,0.03953932,179.77,179.73,0.04104801]
[1740144297151,15.10983102,179.77,179.73,0.04104801]
[1740144297558,5.5632,179.72,179.65,5.299]
[1740144297757,3.5736,179.76,179.65,5.299]
[1740144298057,5.5626,179.74,179.66,15.0702917]
[1740144298458,3.5736,179.76,179.66,15.0702917]
[1740144298658,0.04002929,179.72,179.69,15.0702917]
[1740144298855,3.5736,179.81,179.76,5.5616]
[1740144299653,3.5736,179.81,179.72,15.0702917]
[1740144299857,9.134,179.81,179.76,5.5615]
[1740144300161,0.03769481,179.78,179.76,5.5615]
[1740144300360,0.03769481,179.78,179.75,0.03516271]
[1740144300561,0.03769481,179.78,179.75,5.59716271]
[1740144301054,5.5617,179.76,179.75,0.03516271]
[1740144301363,70.7002917,179.77,179.65,5.299]
[1740144301557,15.0702917,179.74,179.65,5.299]